[Event "Late-Titled-Tuesday-Blitz-September-26-2023"]
[Site "Chess.com"]
[Date "2023.09.26"]
[Round "8"]
[White "AEMEffi"]
[Black "ChadBiryani"]
[Result "1/2-1/2"]
[WhiteElo "2376"]
[BlackElo "2497"]
[TimeControl "180+1"]
[EndTime "15:25:25 PDT"]
[Termination "Game drawn by repetition"]

1. d4 {[%clk 0:02:57.4]} 1... f5 {[%clk 0:02:59.7]} 2. c4 {[%clk 0:02:57.6]}
2... Nf6 {[%clk 0:02:59.3]} 3. g3 {[%clk 0:02:55.8]} 3... e6 {[%clk 0:02:59.3]}
4. Bg2 {[%clk 0:02:55.9]} 4... Be7 {[%clk 0:02:59.7]} 5. Nc3 {[%clk 0:02:52.1]}
5... O-O {[%clk 0:03:00.1]} 6. Nh3 {[%clk 0:02:51.8]} 6... d6 {[%clk 0:03:00]}
7. O-O {[%clk 0:02:52.2]} 7... e5 {[%clk 0:02:58]} 8. dxe5 {[%clk 0:02:53.1]}
8... dxe5 {[%clk 0:02:58.1]} 9. Qxd8 {[%clk 0:02:52]} 9... Rxd8 {[%clk
0:02:57.5]} 10. Bg5 {[%clk 0:02:44.8]} 10... c6 {[%clk 0:02:54.8]} 11. Rfd1
{[%clk 0:02:43.4]} 11... Na6 {[%clk 0:02:49.4]} 12. Rxd8+ {[%clk 0:02:39.2]}
12... Bxd8 {[%clk 0:02:49.2]} 13. Rd1 {[%clk 0:02:39.6]} 13... Be6 {[%clk
0:02:49.2]} 14. b3 {[%clk 0:02:35.1]} 14... Be7 {[%clk 0:02:39.4]} 15. e4 {[%clk
0:02:25.8]} 15... g6 {[%clk 0:02:39.3]} 16. f4 {[%clk 0:02:17.4]} 16... Bc5+
{[%clk 0:02:15.2]} 17. Kh1 {[%clk 0:02:09.7]} 17... Ng4 {[%clk 0:02:14.8]} 18.
fxe5 {[%clk 0:02:05]} 18... Nxe5 {[%clk 0:02:03.5]} 19. Nf4 {[%clk 0:01:57.6]}
19... Ng4 {[%clk 0:01:56.1]} 20. Nxe6 {[%clk 0:01:41.1]} 20... Nf2+ {[%clk
0:01:54.8]} 21. Kg1 {[%clk 0:01:41.2]} 21... Nxd1+ {[%clk 0:01:55.2]} 22. Nxc5
{[%clk 0:01:41.2]} 22... Nxc3 {[%clk 0:01:55.3]} 23. Nxa6 {[%clk 0:01:40.4]}
23... bxa6 {[%clk 0:01:50.7]} 24. exf5 {[%clk 0:01:29.1]} 24... gxf5 {[%clk
0:01:44.7]} 25. Bxc6 {[%clk 0:01:26]} 25... Rb8 {[%clk 0:01:34]} 26. Bf6 {[%clk
0:00:39.2]} 26... Rb6 {[%clk 0:01:05.6]} 27. Bxc3 {[%clk 0:00:38.6]} 27... Rxc6
{[%clk 0:01:05.9]} 28. Kf2 {[%clk 0:00:37.9]} 28... Re6 {[%clk 0:01:02.3]} 29.
Kf3 {[%clk 0:00:36.1]} 29... Kf7 {[%clk 0:01:02.2]} 30. Bd4 {[%clk 0:00:26.8]}
30... Rd6 {[%clk 0:00:58.4]} 31. Ke3 {[%clk 0:00:24.1]} 31... Re6+ {[%clk
0:00:58.5]} 32. Kd3 {[%clk 0:00:20.5]} 32... Re7 {[%clk 0:00:58.3]} 33. c5
{[%clk 0:00:18.8]} 33... Ke6 {[%clk 0:00:56.7]} 34. Kc4 {[%clk 0:00:19.2]} 34...
Rc7 {[%clk 0:00:54.3]} 35. b4 {[%clk 0:00:18.9]} 35... h5 {[%clk 0:00:52.8]} 36.
a4 {[%clk 0:00:15.5]} 36... h4 {[%clk 0:00:47.2]} 37. b5 {[%clk 0:00:15]} 37...
axb5+ {[%clk 0:00:46.2]} 38. axb5 {[%clk 0:00:15.9]} 38... hxg3 {[%clk
0:00:39.9]} 39. hxg3 {[%clk 0:00:16.8]} 39... Rh7 {[%clk 0:00:31.1]} 40. b6
{[%clk 0:00:12.2]} 40... axb6 {[%clk 0:00:30.6]} 41. cxb6 {[%clk 0:00:12.2]}
41... Kd6 {[%clk 0:00:29.8]} 42. Kb5 {[%clk 0:00:09.1]} 42... Kd5 {[%clk
0:00:30]} 43. Be3 {[%clk 0:00:08.5]} 43... Rh1 {[%clk 0:00:16.4]} 44. Bc5 {[%clk
0:00:07.2]} 44... Rh7 {[%clk 0:00:10.5]} 45. Be3 {[%clk 0:00:06.1]} 45... Rh1
{[%clk 0:00:10.6]} 46. Bc5 {[%clk 0:00:06]} 46... Rh7 {[%clk 0:00:06.8]} 47. Be3
{[%clk 0:00:05.8]} 1/2-1/2

[Event "Late-Titled-Tuesday-Blitz-September-26-2023"]
[Site "Chess.com"]
[Date "2023.09.26"]
[Round "8"]
[White "gabduschew"]
[Black "Dewarfd"]
[Result "1-0"]
[WhiteElo "2385"]
[BlackElo "2215"]
[TimeControl "180+1"]
[EndTime "15:25:28 PDT"]
[Termination "gabduschew won on time"]

1. c4 {[%clk 0:03:00.2]} 1... e6 {[%clk 0:03:00.2]} 2. g3 {[%clk 0:02:56.8]}
2... d5 {[%clk 0:03:00.7]} 3. Bg2 {[%clk 0:02:56.7]} 3... Nf6 {[%clk 0:03:00.5]}
4. d3 {[%clk 0:02:55.9]} 4... c5 {[%clk 0:03:00.5]} 5. Bg5 {[%clk 0:02:53.8]}
5... Be7 {[%clk 0:03:00.2]} 6. Qb3 {[%clk 0:02:47.3]} 6... O-O {[%clk
0:02:13.5]} 7. Nc3 {[%clk 0:02:43.1]} 7... dxc4 {[%clk 0:02:08]} 8. Qxc4 {[%clk
0:02:41.9]} 8... Nc6 {[%clk 0:02:06.9]} 9. Bxc6 {[%clk 0:02:40.9]} 9... bxc6
{[%clk 0:02:06.6]} 10. Nf3 {[%clk 0:02:40.1]} 10... Rb8 {[%clk 0:02:02.9]} 11.
Nd1 {[%clk 0:02:35.8]} 11... Nd5 {[%clk 0:01:58]} 12. Bxe7 {[%clk 0:02:34.9]}
12... Qxe7 {[%clk 0:01:58.6]} 13. O-O {[%clk 0:02:34.3]} 13... h5 {[%clk
0:01:50.4]} 14. Rc1 {[%clk 0:02:31.9]} 14... Rb5 {[%clk 0:01:42.4]} 15. b3
{[%clk 0:02:24.4]} 15... Nb6 {[%clk 0:01:27.7]} 16. Qe4 {[%clk 0:02:13.6]} 16...
Nd5 {[%clk 0:01:22.3]} 17. Qe5 {[%clk 0:02:03.7]} 17... g6 {[%clk 0:01:06.5]}
18. Ne3 {[%clk 0:02:01.5]} 18... Bd7 {[%clk 0:01:04]} 19. Nc4 {[%clk 0:01:58.5]}
19... a5 {[%clk 0:00:50.2]} 20. Nfd2 {[%clk 0:01:50.4]} 20... Qf6 {[%clk
0:00:35.8]} 21. Qxf6 {[%clk 0:01:47.1]} 21... Nxf6 {[%clk 0:00:35.9]} 22. Nd6
{[%clk 0:01:46.3]} 22... Rb4 {[%clk 0:00:35]} 23. Rxc5 {[%clk 0:01:45.2]} 23...
a4 {[%clk 0:00:35.2]} 24. Rc4 {[%clk 0:01:40]} 24... Rfb8 {[%clk 0:00:31.9]} 25.
Rxb4 {[%clk 0:01:35.7]} 25... Rxb4 {[%clk 0:00:31.2]} 26. a3 {[%clk 0:01:35.5]}
26... Rd4 {[%clk 0:00:30.1]} 27. N6c4 {[%clk 0:01:34.4]} 27... axb3 {[%clk
0:00:29.9]} 28. Rb1 {[%clk 0:01:31.8]} 28... c5 {[%clk 0:00:20.6]} 29. Rxb3
{[%clk 0:01:30.3]} 29... Ba4 {[%clk 0:00:20.7]} 30. Rb8+ {[%clk 0:01:28.9]}
30... Kg7 {[%clk 0:00:21.3]} 31. Rb7 {[%clk 0:01:28.3]} 31... Bd1 {[%clk
0:00:20.2]} 32. Kf1 {[%clk 0:01:27.3]} 32... Ng4 {[%clk 0:00:19.4]} 33. Ke1
{[%clk 0:01:24.6]} 33... Ba4 {[%clk 0:00:17.4]} 34. h3 {[%clk 0:01:23.9]} 34...
Nf6 {[%clk 0:00:16.6]} 35. Ne5 {[%clk 0:01:22.7]} 35... Be8 {[%clk 0:00:16]} 36.
Ndc4 {[%clk 0:01:20.9]} 36... Rd5 {[%clk 0:00:15]} 37. a4 {[%clk 0:01:18.8]}
37... Rd8 {[%clk 0:00:15.1]} 38. a5 {[%clk 0:01:18.1]} 38... Ra8 {[%clk
0:00:15.8]} 39. Kd2 {[%clk 0:01:16.3]} 39... Nd5 {[%clk 0:00:15.7]} 40. f4
{[%clk 0:01:14.2]} 40... Nf6 {[%clk 0:00:14.7]} 41. g4 {[%clk 0:01:13.6]} 41...
hxg4 {[%clk 0:00:14.6]} 42. hxg4 {[%clk 0:01:13.8]} 42... Nd5 {[%clk 0:00:15.3]}
43. g5 {[%clk 0:01:13.5]} 43... Nb4 {[%clk 0:00:13.1]} 44. Nd6 {[%clk
0:01:09.7]} 44... Bc6 {[%clk 0:00:08]} 45. Rxf7+ {[%clk 0:01:08.3]} 45... Kg8
{[%clk 0:00:08.3]} 46. Nxg6 {[%clk 0:01:00.4]} 46... Rxa5 {[%clk 0:00:03.7]} 47.
Ne7+ {[%clk 0:00:59.3]} 47... Kh8 {[%clk 0:00:02.8]} 48. g6 {[%clk 0:00:59.2]}
48... Ra2+ {[%clk 0:00:03]} 49. Ke3 {[%clk 0:00:58.4]} 49... Nd5+ {[%clk
0:00:03]} 50. Nxd5 {[%clk 0:00:58.1]} 50... Bxd5 {[%clk 0:00:02.3]} 51. Ne8
{[%clk 0:00:54.6]} 51... e5 {[%clk 0:00:01.9]} 52. Rf8+ {[%clk 0:00:51.9]} 1-0

[Event "Late-Titled-Tuesday-Blitz-September-26-2023"]
[Site "Chess.com"]
[Date "2023.09.26"]
[Round "8"]
[White "venturov"]
[Black "JoakimVonAnd"]
[Result "0-1"]
[WhiteElo "2498"]
[BlackElo "2736"]
[TimeControl "180+1"]
[EndTime "15:25:34 PDT"]
[Termination "JoakimVonAnd won by checkmate"]

1. e4 {[%clk 0:03:00.9]} 1... g6 {[%clk 0:02:59.9]} 2. d4 {[%clk 0:03:00]} 2...
Bg7 {[%clk 0:03:00.4]} 3. Nf3 {[%clk 0:02:56.2]} 3... c6 {[%clk 0:03:00.1]} 4.
Bd3 {[%clk 0:02:54]} 4... d5 {[%clk 0:02:57.7]} 5. e5 {[%clk 0:02:54.3]} 5... f6
{[%clk 0:02:53.9]} 6. exf6 {[%clk 0:02:49.4]} 6... Nxf6 {[%clk 0:02:54.8]} 7.
O-O {[%clk 0:02:48.1]} 7... O-O {[%clk 0:02:55]} 8. Nbd2 {[%clk 0:02:46.9]} 8...
Nbd7 {[%clk 0:02:55.2]} 9. Re1 {[%clk 0:02:46.5]} 9... Nh5 {[%clk 0:02:33.5]}
10. Nf1 {[%clk 0:02:43.1]} 10... Nf4 {[%clk 0:02:32]} 11. Bxf4 {[%clk
0:02:43.2]} 11... Rxf4 {[%clk 0:02:32.9]} 12. c3 {[%clk 0:02:39.9]} 12... Nf6
{[%clk 0:02:18.2]} 13. Ne5 {[%clk 0:02:39.1]} 13... Ng4 {[%clk 0:02:12.7]} 14.
Nxg4 {[%clk 0:02:37.8]} 14... Bxg4 {[%clk 0:02:13.6]} 15. f3 {[%clk 0:02:38.2]}
15... Bd7 {[%clk 0:02:10.7]} 16. Qe2 {[%clk 0:02:34.4]} 16... Rf7 {[%clk
0:02:10.4]} 17. Nd2 {[%clk 0:02:29.5]} 17... Qb6 {[%clk 0:02:10.4]} 18. Nb3
{[%clk 0:02:11.2]} 18... Re8 {[%clk 0:02:09.6]} 19. Nc5 {[%clk 0:02:11.1]} 19...
Bc8 {[%clk 0:02:09.5]} 20. Qf2 {[%clk 0:01:14]} 20... e5 {[%clk 0:01:34.6]} 21.
dxe5 {[%clk 0:01:14.9]} 21... Bxe5 {[%clk 0:01:34.7]} 22. Re2 {[%clk 0:01:06.8]}
22... Rfe7 {[%clk 0:01:32.8]} 23. Rae1 {[%clk 0:01:05]} 23... Bd6 {[%clk
0:01:29.8]} 24. Rxe7 {[%clk 0:01:05.9]} 24... Rxe7 {[%clk 0:01:29.8]} 25. b4
{[%clk 0:00:47.4]} 25... Bxc5 {[%clk 0:01:18.2]} 26. bxc5 {[%clk 0:00:45.1]}
26... Rxe1+ {[%clk 0:01:18.2]} 27. Qxe1 {[%clk 0:00:46]} 27... Qxc5+ {[%clk
0:01:18.5]} 28. Kf1 {[%clk 0:00:45.7]} 28... Kf7 {[%clk 0:01:03]} 29. Qe5 {[%clk
0:00:44]} 29... Be6 {[%clk 0:01:01.9]} 30. Qf4+ {[%clk 0:00:41.9]} 30... Ke7
{[%clk 0:00:55.2]} 31. Qc7+ {[%clk 0:00:41.1]} 31... Bd7 {[%clk 0:00:55.5]} 32.
Qe5+ {[%clk 0:00:37.5]} 32... Kd8 {[%clk 0:00:55.5]} 33. Qh8+ {[%clk 0:00:30]}
33... Kc7 {[%clk 0:00:54.7]} 34. Qxh7 {[%clk 0:00:29.5]} 34... Qxc3 {[%clk
0:00:53.9]} 35. Qxg6 {[%clk 0:00:27.7]} 35... c5 {[%clk 0:00:49.8]} 36. h4
{[%clk 0:00:23.3]} 36... c4 {[%clk 0:00:43.8]} 37. Bf5 {[%clk 0:00:22.6]} 37...
Qa1+ {[%clk 0:00:43.1]} 38. Kf2 {[%clk 0:00:15.7]} 38... Qd4+ {[%clk 0:00:43.3]}
39. Kf1 {[%clk 0:00:12.4]} 39... Qa1+ {[%clk 0:00:27.9]} 40. Kf2 {[%clk
0:00:10.7]} 40... Qd4+ {[%clk 0:00:28]} 41. Kf1 {[%clk 0:00:10.9]} 41... Bxf5
{[%clk 0:00:28.2]} 42. Qxf5 {[%clk 0:00:10.8]} 42... c3 {[%clk 0:00:28.7]} 43.
Qc2 {[%clk 0:00:06]} 43... Qc4+ {[%clk 0:00:27]} 44. Ke1 {[%clk 0:00:05.8]}
44... d4 {[%clk 0:00:27.7]} 45. Qh7+ {[%clk 0:00:05.3]} 45... Kb6 {[%clk
0:00:27.9]} 46. Qg6+ {[%clk 0:00:05.2]} 46... Ka5 {[%clk 0:00:28]} 47. Qf5+
{[%clk 0:00:03.9]} 47... b5 {[%clk 0:00:27.6]} 48. Qc2 {[%clk 0:00:01.9]} 48...
d3 {[%clk 0:00:27.2]} 49. Qb3 {[%clk 0:00:01.6]} 49... d2+ {[%clk 0:00:26.6]}
50. Kd1 {[%clk 0:00:01.8]} 50... Qf1+ {[%clk 0:00:26.7]} 51. Kc2 {[%clk
0:00:02.7]} 51... d1=Q+ {[%clk 0:00:27.3]} 52. Kxc3 {[%clk 0:00:03]} 52... Qxb3+
{[%clk 0:00:27.6]} 53. axb3 {[%clk 0:00:03.9]} 53... Qxg2 {[%clk 0:00:27.9]} 54.
b4+ {[%clk 0:00:03.9]} 54... Ka4 {[%clk 0:00:27.5]} 55. h5 {[%clk 0:00:04.8]}
55... Qxf3+ {[%clk 0:00:27.8]} 56. Kb2 {[%clk 0:00:05.7]} 56... Qxh5 {[%clk
0:00:28.4]} 57. Kc3 {[%clk 0:00:05.9]} 57... Qf3+ {[%clk 0:00:28.4]} 58. Kb2
{[%clk 0:00:06.8]} 58... Qd3 {[%clk 0:00:28.2]} 59. Kc1 {[%clk 0:00:06.7]} 59...
Qe2 {[%clk 0:00:28.3]} 60. Kb1 {[%clk 0:00:05.9]} 60... Kb3 {[%clk 0:00:29]} 61.
Ka1 {[%clk 0:00:06.8]} 61... Qa2# {[%clk 0:00:29.1]} 0-1

[Event "Late-Titled-Tuesday-Blitz-September-26-2023"]
[Site "Chess.com"]
[Date "2023.09.26"]
[Round "8"]
[White "HamedWafa4"]
[Black "The_Straightforward_Rook"]
[Result "1/2-1/2"]
[WhiteElo "2641"]
[BlackElo "2534"]
[TimeControl "180+1"]
[EndTime "15:25:35 PDT"]
[Termination "Game drawn by repetition"]

1. e4 {[%clk 0:03:00.9]} 1... e5 {[%clk 0:02:56.4]} 2. Nf3 {[%clk 0:02:59]} 2...
Nc6 {[%clk 0:02:56.7]} 3. Bb5 {[%clk 0:02:57.9]} 3... Nf6 {[%clk 0:02:56.4]} 4.
Nc3 {[%clk 0:02:55.2]} 4... Bd6 {[%clk 0:02:55.4]} 5. O-O {[%clk 0:02:53.8]}
5... O-O {[%clk 0:02:55.6]} 6. d3 {[%clk 0:02:49.5]} 6... Nd4 {[%clk 0:02:55.3]}
7. Nxd4 {[%clk 0:02:41]} 7... exd4 {[%clk 0:02:54.3]} 8. Ne2 {[%clk 0:02:41.6]}
8... c6 {[%clk 0:02:50.2]} 9. Bc4 {[%clk 0:02:37.7]} 9... Bc7 {[%clk 0:02:41.7]}
10. Nxd4 {[%clk 0:02:09.7]} 10... d5 {[%clk 0:02:42]} 11. exd5 {[%clk
0:02:08.2]} 11... cxd5 {[%clk 0:02:42.9]} 12. Bb3 {[%clk 0:02:07.7]} 12... Ng4
{[%clk 0:02:32.6]} 13. Nf3 {[%clk 0:01:59.9]} 13... a5 {[%clk 0:02:27.3]} 14. a4
{[%clk 0:01:56.3]} 14... Ra6 {[%clk 0:02:22.4]} 15. h3 {[%clk 0:01:54.7]} 15...
Ne5 {[%clk 0:02:13.6]} 16. Nxe5 {[%clk 0:01:47.1]} 16... Bxe5 {[%clk 0:02:14.5]}
17. d4 {[%clk 0:01:46.5]} 17... Bb8 {[%clk 0:02:11.5]} 18. c3 {[%clk 0:01:31.2]}
18... Qc7 {[%clk 0:01:51.4]} 19. f4 {[%clk 0:01:26.9]} 19... Be6 {[%clk
0:01:44.1]} 20. Bc2 {[%clk 0:01:23.7]} 20... Rb6 {[%clk 0:01:36.8]} 21. Qf3
{[%clk 0:01:22.6]} 21... g6 {[%clk 0:01:34.2]} 22. b3 {[%clk 0:01:12.7]} 22...
Qc8 {[%clk 0:01:34]} 23. f5 {[%clk 0:01:06.4]} 23... Bxf5 {[%clk 0:01:30.5]} 24.
Bxf5 {[%clk 0:01:06.4]} 24... Qxf5 {[%clk 0:01:30.2]} 25. Qxf5 {[%clk
0:01:06.5]} 25... gxf5 {[%clk 0:01:31.1]} 26. Rxf5 {[%clk 0:01:04.7]} 26... Rxb3
{[%clk 0:01:26.5]} 27. Bh6 {[%clk 0:01:04.5]} 27... Re8 {[%clk 0:01:21.2]} 28.
Rg5+ {[%clk 0:01:04.3]} 28... Kh8 {[%clk 0:01:18.3]} 29. Rf1 {[%clk 0:00:42.4]}
29... Rxc3 {[%clk 0:01:09.1]} 30. Bg7+ {[%clk 0:00:41.8]} 30... Kg8 {[%clk
0:01:08.2]} 31. Bh6+ {[%clk 0:00:34.9]} 31... Kh8 {[%clk 0:01:08.2]} 32. Rxd5
{[%clk 0:00:33.3]} 32... Rc6 {[%clk 0:00:55.2]} 33. Bg5 {[%clk 0:00:25.2]} 33...
Kg8 {[%clk 0:00:51.3]} 34. Bf6 {[%clk 0:00:23.7]} 34... h6 {[%clk 0:00:44.7]}
35. Rd7 {[%clk 0:00:20.5]} 35... Rc7 {[%clk 0:00:40.3]} 36. Rxc7 {[%clk
0:00:18.8]} 36... Bxc7 {[%clk 0:00:41.2]} 37. Rb1 {[%clk 0:00:18.8]} 37... b6
{[%clk 0:00:34.6]} 38. Kf2 {[%clk 0:00:17.2]} 38... Re6 {[%clk 0:00:31]} 39. Bh4
{[%clk 0:00:16]} 39... Re4 {[%clk 0:00:27.5]} 40. Bg3 {[%clk 0:00:14.2]} 40...
Bxg3+ {[%clk 0:00:25.2]} 41. Kxg3 {[%clk 0:00:15.1]} 41... Rxd4 {[%clk
0:00:25.7]} 42. Rxb6 {[%clk 0:00:15.8]} 42... Rxa4 {[%clk 0:00:26.1]} 43. Rxh6
{[%clk 0:00:15.7]} 43... Kg7 {[%clk 0:00:20.5]} 44. Ra6 {[%clk 0:00:16.2]} 44...
Ra3+ {[%clk 0:00:20.2]} 45. Kh4 {[%clk 0:00:16.5]} 45... Ra2 {[%clk 0:00:20.4]}
46. g4 {[%clk 0:00:16.6]} 46... a4 {[%clk 0:00:21]} 47. Kg5 {[%clk 0:00:17.1]}
47... a3 {[%clk 0:00:19.8]} 48. h4 {[%clk 0:00:17.8]} 48... Ra1 {[%clk 0:00:19]}
49. h5 {[%clk 0:00:18]} 49... Kh7 {[%clk 0:00:19.4]} 50. Ra7 {[%clk 0:00:17.8]}
50... Kg7 {[%clk 0:00:18.2]} 51. Ra6 {[%clk 0:00:06.9]} 51... Kh7 {[%clk
0:00:16.8]} 52. Rh6+ {[%clk 0:00:05.8]} 52... Kg7 {[%clk 0:00:17.1]} 53. Ra6
{[%clk 0:00:05.9]} 1/2-1/2

[Event "Late-Titled-Tuesday-Blitz-September-26-2023"]
[Site "Chess.com"]
[Date "2023.09.26"]
[Round "8"]
[White "laskakid"]
[Black "rdarruda"]
[Result "1/2-1/2"]
[WhiteElo "2334"]
[BlackElo "2471"]
[TimeControl "180+1"]
[EndTime "15:25:36 PDT"]
[Termination "Game drawn - insufficient material"]

1. d4 {[%clk 0:03:00.9]} 1... Nf6 {[%clk 0:02:11.4]} 2. c4 {[%clk 0:03:00]} 2...
e5 {[%clk 0:02:11.2]} 3. dxe5 {[%clk 0:02:59.3]} 3... Ne4 {[%clk 0:02:11.6]} 4.
a3 {[%clk 0:02:58.4]} 4... Nc6 {[%clk 0:02:12]} 5. Qc2 {[%clk 0:02:57.9]} 5...
d5 {[%clk 0:02:11.8]} 6. exd6 {[%clk 0:02:50.8]} 6... Bf5 {[%clk 0:02:10.6]} 7.
Nc3 {[%clk 0:02:30.6]} 7... Ng3 {[%clk 0:02:06.5]} 8. e4 {[%clk 0:02:30.7]} 8...
Nxh1 {[%clk 0:02:06.8]} 9. exf5 {[%clk 0:02:30.9]} 9... Bxd6 {[%clk 0:02:07.1]}
10. Nf3 {[%clk 0:02:19.9]} 10... Qe7+ {[%clk 0:02:02.3]} 11. Qe4 {[%clk
0:01:59.6]} 11... Bc5 {[%clk 0:01:52.7]} 12. Qxe7+ {[%clk 0:01:53.1]} 12... Nxe7
{[%clk 0:01:51]} 13. Ne4 {[%clk 0:01:52.7]} 13... Bd6 {[%clk 0:01:47.8]} 14. c5
{[%clk 0:01:47.8]} 14... Bxh2 {[%clk 0:01:43.4]} 15. Nxh2 {[%clk 0:01:44.4]}
15... Nxf5 {[%clk 0:01:44.3]} 16. Nf3 {[%clk 0:01:34.6]} 16... O-O {[%clk
0:01:41]} 17. Bd3 {[%clk 0:01:23.5]} 17... Rad8 {[%clk 0:01:39.3]} 18. Ke2
{[%clk 0:01:15.8]} 18... Rfe8 {[%clk 0:01:39.1]} 19. Bf4 {[%clk 0:01:04.5]}
19... Nxf2 {[%clk 0:01:35.3]} 20. Kxf2 {[%clk 0:00:51.1]} 20... Rxd3 {[%clk
0:01:35]} 21. Re1 {[%clk 0:00:49.5]} 21... Re6 {[%clk 0:01:11]} 22. Bxc7 {[%clk
0:00:39.2]} 22... Nd4 {[%clk 0:01:05.9]} 23. Ne5 {[%clk 0:00:26.9]} 23... Rb3
{[%clk 0:01:05.6]} 24. Rd1 {[%clk 0:00:20.4]} 24... Rxb2+ {[%clk 0:01:04.1]} 25.
Kf1 {[%clk 0:00:20.5]} 25... f6 {[%clk 0:00:57.9]} 26. Nc4 {[%clk 0:00:17.7]}
26... Re2 {[%clk 0:00:31.6]} 27. Rxd4 {[%clk 0:00:15.9]} 27... R2xe4 {[%clk
0:00:31.7]} 28. Rd8+ {[%clk 0:00:16.1]} 28... Kf7 {[%clk 0:00:31.2]} 29. Nd6+
{[%clk 0:00:16.4]} 29... Ke7 {[%clk 0:00:26.8]} 30. Nxe4 {[%clk 0:00:15.3]}
30... Rxe4 {[%clk 0:00:27.7]} 31. Rb8 {[%clk 0:00:13.5]} 31... Kd7 {[%clk
0:00:24.9]} 32. Bd6 {[%clk 0:00:11.3]} 32... Kc6 {[%clk 0:00:24.2]} 33. Rc8+
{[%clk 0:00:11.4]} 33... Kd5 {[%clk 0:00:19.5]} 34. Rc7 {[%clk 0:00:11]} 34...
b6 {[%clk 0:00:20.1]} 35. Rxg7 {[%clk 0:00:07.9]} 35... bxc5 {[%clk 0:00:19.9]}
36. Bb8 {[%clk 0:00:08.2]} 36... Ra4 {[%clk 0:00:19]} 37. Rxa7 {[%clk
0:00:07.1]} 37... Re4 {[%clk 0:00:13.4]} 38. Rxh7 {[%clk 0:00:06.1]} 38... c4
{[%clk 0:00:13.4]} 39. Ba7 {[%clk 0:00:04.6]} 39... c3 {[%clk 0:00:13.3]} 40.
Rc7 {[%clk 0:00:04.4]} 40... Ra4 {[%clk 0:00:10.7]} 41. Rxc3 {[%clk 0:00:04]}
41... Rxa7 {[%clk 0:00:10.3]} 42. g4 {[%clk 0:00:03.5]} 42... Kd4 {[%clk
0:00:10.9]} 43. Rf3 {[%clk 0:00:03.3]} 43... Ke4 {[%clk 0:00:07.8]} 44. Rxf6
{[%clk 0:00:03.5]} 44... Rxa3 {[%clk 0:00:08]} 45. g5 {[%clk 0:00:03.8]} 45...
Rg3 {[%clk 0:00:06.7]} 46. g6 {[%clk 0:00:03.7]} 46... Ke5 {[%clk 0:00:06.9]}
47. Rb6 {[%clk 0:00:03.5]} 47... Kf5 {[%clk 0:00:07]} 48. Ra6 {[%clk 0:00:04]}
48... Rxg6 {[%clk 0:00:06.9]} 49. Rxg6 {[%clk 0:00:04]} 49... Kxg6 {[%clk
0:00:07.8]} 1/2-1/2

[Event "Late-Titled-Tuesday-Blitz-September-26-2023"]
[Site "Chess.com"]
[Date "2023.09.26"]
[Round "8"]
[White "Harsha_Bharathakoti"]
[Black "SpeedofLight0"]
[Result "1-0"]
[WhiteElo "2912"]
[BlackElo "3039"]
[TimeControl "180+1"]
[EndTime "15:25:38 PDT"]
[Termination "Harsha_Bharathakoti won by checkmate"]

1. Nf3 {[%clk 0:03:00.9]} 1... c5 {[%clk 0:02:58.6]} 2. c4 {[%clk 0:02:59.6]}
2... Nf6 {[%clk 0:02:57.1]} 3. Nc3 {[%clk 0:02:58.6]} 3... Nc6 {[%clk 0:02:57]}
4. d4 {[%clk 0:02:58]} 4... cxd4 {[%clk 0:02:57.2]} 5. Nxd4 {[%clk 0:02:58.9]}
5... e6 {[%clk 0:02:57.8]} 6. g3 {[%clk 0:02:59.1]} 6... Qb6 {[%clk 0:02:58]} 7.
Nb3 {[%clk 0:02:59.1]} 7... Ne5 {[%clk 0:02:58]} 8. e4 {[%clk 0:02:59.2]} 8...
Bb4 {[%clk 0:02:58]} 9. Qe2 {[%clk 0:02:59.3]} 9... d6 {[%clk 0:02:57.9]} 10.
Bd2 {[%clk 0:02:59.4]} 10... a5 {[%clk 0:02:57.4]} 11. O-O-O {[%clk 0:02:59]}
11... O-O {[%clk 0:02:57]} 12. f4 {[%clk 0:02:17.1]} 12... Nc6 {[%clk
0:02:54.5]} 13. Be3 {[%clk 0:02:17.2]} 13... Qc7 {[%clk 0:02:52.9]} 14. Nb5
{[%clk 0:02:13.5]} 14... Qe7 {[%clk 0:02:49.6]} 15. a3 {[%clk 0:02:02.9]} 15...
a4 {[%clk 0:02:47.7]} 16. Nd2 {[%clk 0:02:03.3]} 16... Ba5 {[%clk 0:02:42.3]}
17. Bg2 {[%clk 0:01:55]} 17... e5 {[%clk 0:02:40.5]} 18. f5 {[%clk 0:01:53.3]}
18... b6 {[%clk 0:02:29.3]} 19. g4 {[%clk 0:01:50.8]} 19... Nd7 {[%clk
0:02:23.8]} 20. Nc7 {[%clk 0:01:36.8]} 20... Ba6 {[%clk 0:02:03.1]} 21. Nd5
{[%clk 0:01:29.1]} 21... Qd8 {[%clk 0:01:53.9]} 22. g5 {[%clk 0:01:27.6]} 22...
Nd4 {[%clk 0:01:46.9]} 23. Qg4 {[%clk 0:01:18.8]} 23... Bxc4 {[%clk 0:01:39.5]}
24. Nxc4 {[%clk 0:01:18.4]} 24... Rc8 {[%clk 0:01:39.2]} 25. g6 {[%clk
0:00:55.8]} 25... Rxc4+ {[%clk 0:01:30.3]} 26. Kb1 {[%clk 0:00:56.1]} 26... Nf6
{[%clk 0:01:12]} 27. Nxf6+ {[%clk 0:00:52.8]} 27... Qxf6 {[%clk 0:01:10]} 28.
Bg5 {[%clk 0:00:51.8]} 28... Qxg5 {[%clk 0:00:50.4]} 29. gxh7+ {[%clk
0:00:31.1]} 29... Kh8 {[%clk 0:00:48.8]} 30. Qxg5 {[%clk 0:00:32]} 30... f6
{[%clk 0:00:45.2]} 31. Qg4 {[%clk 0:00:24]} 31... b5 {[%clk 0:00:33.8]} 32. Bf1
{[%clk 0:00:23.5]} 32... Rc5 {[%clk 0:00:32.7]} 33. Rg1 {[%clk 0:00:22.8]} 33...
Rf7 {[%clk 0:00:30.4]} 34. Qh5 {[%clk 0:00:16.8]} 34... Re7 {[%clk 0:00:30]} 35.
Bd3 {[%clk 0:00:12.3]} 35... Nb3 {[%clk 0:00:25]} 36. Rc1 {[%clk 0:00:09]} 36...
Nxc1 {[%clk 0:00:07.5]} 37. Rxc1 {[%clk 0:00:09.9]} 37... b4 {[%clk 0:00:08]}
38. Rxc5 {[%clk 0:00:09.4]} 38... dxc5 {[%clk 0:00:08.9]} 39. Bc4 {[%clk
0:00:07.2]} 39... bxa3 {[%clk 0:00:08.7]} 40. bxa3 {[%clk 0:00:07.2]} 40... Bd2
{[%clk 0:00:08.6]} 41. Kc2 {[%clk 0:00:05.1]} 41... Be3 {[%clk 0:00:08.8]} 42.
Bd5 {[%clk 0:00:04.8]} 42... Bd4 {[%clk 0:00:08.9]} 43. Qe2 {[%clk 0:00:05.1]}
43... Re8 {[%clk 0:00:07.7]} 44. Qb5 {[%clk 0:00:03.9]} 44... Rf8 {[%clk
0:00:07.5]} 45. Bg8 {[%clk 0:00:03.3]} 45... Be3 {[%clk 0:00:05.1]} 46. Qxa4
{[%clk 0:00:03.6]} 46... Rb8 {[%clk 0:00:04.9]} 47. Bc4 {[%clk 0:00:02.3]} 47...
Bd4 {[%clk 0:00:04.9]} 48. Qd7 {[%clk 0:00:02.4]} 48... Rb2+ {[%clk 0:00:04.4]}
49. Kd3 {[%clk 0:00:03.1]} 49... Rb8 {[%clk 0:00:04.6]} 50. Qf7 {[%clk
0:00:02.9]} 50... Kxh7 {[%clk 0:00:02.8]} 51. Qh5# {[%clk 0:00:03]} 1-0